[Event "FIDE WY-U16 Olympiad 2022"]
[Site "Nakhchivan"]
[Date "2022.10.04"]
[Round "3.6"]
[White "Kairbekova, Amina"]
[Black "Pranesh M"]
[Result "0-1"]
[ECO "C79"]
[WhiteElo "2231"]
[BlackElo "2442"]
[Annotator "TA"]
[PlyCount "98"]
[EventDate "2022.10.02"]
[EventType "team-tourn"]
[EventCountry "AZE"]
[SourceTitle "playchess.com"]
[Source "ChessBase"]
[SourceQuality "1"]
[WhiteTeam "Kazakhstan"]
[BlackTeam "India"]
[WhiteTeamCountry "KAZ"]
[BlackTeamCountry "IND"]
[TimeControl "40/5400+30:1800+30"]

{[%evp 16,97,29,29,27,25,53,25,34,0,0,0,0,0,0,0,0,-26,-47,-95,-70,-80,-93,-95,-105,-122,-118,-378,-400,-422,-403,-410,-333,-322,-186,-210,-158,-149,-80,-71,-75,-83,-79,-62,-81,-259,-233,-243,-252,-223,-163,-143,-84,-114,-121,-105,-125,-318,-108,-910,-860,-929,-932,-944,-1699,-1620,-1535,-1227,-958,-2700,-2158,-4935,-2604,-29978,-29981,-29989,-29990,-29992,-29993,-29993,-29992,-29996,-29997,-29999]} 1. e4 {[%emt 0:00:06]} e5 {[%emt 0:00:10]} 2. Nf3 {[%emt 0:00:03]} Nc6 {[%emt 0:00:05]} 3. Bb5 {[%emt 0:00:06]} a6 {[%emt 0:00:05]} 4. Ba4 {[%emt 0:00:03]} Nf6 {[%emt 0:00:36]} 5. O-O {[%emt 0:00:13]} d6 {[%emt 0:01:06]} 6. d3 {[%emt 0:04:39]} g6 {[%emt 0:00:53]} 7. c3 {[%emt 0:00:28]} Bg7 {[%emt 0:00:07]} 8. Re1 {[%emt 0:01:10]} O-O {[%emt 0:00:06]} 9. h3 {[%emt 0:02:58]} b5 {[%emt 0:03:14] C77: Ruy Lopez: 3...a6 4 Ba4 Nf6, unusual lines.} 10. Bc2 {[%emt 0:00:38]} Nh5 {[%emt 0:00:57]} 11. d4 {[%emt 0:01:25]} Bb7 {[%emt 0:01:37] [#] White has an edge.} 12. a4 $146 {[%emt 0:05:20]} ({Predecessor:} 12. Bg5 Qd7 13. Qd2 Rae8 14. a4 f6 15. Be3 f5 16. axb5 axb5 17. dxe5 Nxe5 18. Nxe5 Bxe5 19. exf5 gxf5 {0-1 (28) Bitensky,I (2363)-Mikhalevski,A (2439) Tel Aviv 2001}) 12... exd4 {[%emt 0:01:43]} 13. cxd4 {[%emt 0:00:57]} Nb4 {[%emt 0:00:29]} 14. Bg5 {[%emt 0:04:07]} Qc8 {[%emt 0:02:37]} 15. Bb3 {[%emt 0:01:49]} h6 {[%emt 0:00:56]} 16. Nh4 {[%emt 0:04:03] Threatens to win with Nxg6.} Kh7 {[%emt 0:13:52]} (16... hxg5 17. Nxg6 Re8 18. Qxh5 $11) 17. Be7 {[%emt 0:01:07]} (17. Be3 $15 {might be stronger.}) 17... Re8 $1 $17 {[%emt 0:07:45]} 18. Bxf7 {[%emt 0:01:45]} Nf4 {[%emt 0:00:10]} (18... Rxe7 $2 19. Bxg6+ Kh8 20. Bxh5 Rxe4 21. Rxe4 Bxe4 22. Qe1 Bxb1 23. Rxb1 $18 (23. Qxb4 Qd8 $16)) 19. Bg5 {[%emt 0:24:45]} hxg5 {[%emt 0:01:15] Active counter play!} 20. Nxg6 {[%emt 0:00:08]} Rf8 {[%emt 0:01:20]} (20... Bxe4 $2 21. Rxe4 Qf5 22. Rxe8 $18) 21. Nxf8+ {[%emt 0:06:14][%mdl 8192]} (21. Nxf4 $17 Rxf7 22. Nh5) 21... Qxf8 $19 {[%emt 0:00:13]} (21... Bxf8 22. axb5 Qd7 23. Bc4 $14) 22. Bb3 {[%emt 0:00:16]} Nbd3 {[%emt 0:03:01][%cal Of4h3]} 23. Re3 {[%emt 0:03:17]} Bxd4 {[%emt 0:10:31] This bishop pair is nice.} 24. Nc3 {[%emt 0:00:44]} b4 {[%emt 0:07:31] Really sharp!} (24... Kh6 $142 25. Qd2 Nc5) 25. Nd5 {[%emt 0:10:28]} Bxe3 {[%emt 0:01:13]} ({Not} 25... Bxb2 26. Rb1 Nxf2 27. Qd2 $17) 26. fxe3 {[%emt 0:02:41] [#]} Nxd5 {[%emt 0:00:30]} ({Inferior is} 26... Nxb2 27. Qc2 Bxd5 28. Bxd5 Nxd5 29. exd5+ Kh6 30. Qxb2 $15) (26... Nxh3+ $142 $1 {[%mdl 512]} 27. gxh3 Qf2+ 28. Kh1 Qh4 $1) 27. Qxd3 $17 {[%emt 0:01:35] [#]} Nf6 {[%emt 0:00:22]} 28. e5+ {[%emt 0:01:41] [#]} Be4 $1 {[%emt 0:00:30]} 29. Qc4 {[%emt 0:00:19]} dxe5 {[%emt 0:00:39] Strongly threatening ...Qd6.} 30. Qxc7+ {[%emt 0:00:09]} (30. Rf1 $17 {only move.} Kh6 31. Rxf6+ Qxf6 32. Qxe4) 30... Qg7 $19 {[%emt 0:00:33]} 31. Qxe5 {[%emt 0:00:05]} Re8 {[%emt 0:00:10]} 32. Qd6 {[%emt 0:02:57]} Qe7 {[%emt 0:01:34]} 33. Qxa6 {[%emt 0:01:00]} Bb7 {[%emt 0:02:58]} (33... Qe5 $142 34. Qe2 Kg7) 34. Qd3+ {[%emt 0:00:14]} Kg7 {[%emt 0:00:42]} 35. Re1 {[%emt 0:00:40]} Qe5 {[%emt 0:00:49]} 36. e4 $2 {[%emt 0:04:11]} (36. Qb5 $17 {was called for.} Ba8 37. Qxe5 Rxe5 38. Bd1) 36... Qc5+ $2 $40 {[%emt 0:03:52][%mdl 128] Black has strong attack.} ({But not} 36... Bxe4 $2 37. Qd2) (36... Qxb2 $19 {has better winning chances.} 37. Qb5 Qxb3 38. Qxb7+ Kg6) 37. Kh1 $2 {[%emt 0:01:36][%mdl 8192]} (37. Qe3 $17 Qxe3+ 38. Rxe3) 37... Bxe4 {[%emt 0:01:12]} 38. Qd2 {[%emt 0:02:06]} g4 {[%emt 0:01:30][%cal Bg5g4,Bg4g3][%mdl 32] And now ...gxh3 would win.} 39. Rc1 {[%emt 0:01:47]} Qe5 {[%emt 0:00:12] ...gxh3 is the strong threat.} 40. h4 {[%emt 0:00:43]} Rh8 {[%emt 0:00:54]} 41. Qf2 {[%emt 0:30:10]} Kg6 {[%emt 0:31:44] ( -> ...g3)} 42. Kg1 {[%emt 0:01:13]} g3 {[%emt 0:00:45]} 43. Qa7 {[%emt 0:00:47]} Rh7 {[%emt 0:00:52]} 44. Qe3 {[%emt 0:02:35]} Rxh4 {[%emt 0:00:22] Black mates.} 45. Bc2 {[%emt 0:00:06]} Nd5 {[%emt 0:02:19]} 46. Bxe4+ {[%emt 0:02:09]} Rxe4 {[%emt 0:00:09]} 47. Rc6+ {[%emt 0:01:01]} Nf6 {[%emt 0:00:06]} 48. Qd3 {[%emt 0:00:11]} Qd4+ {[%emt 0:00:08]} 49. Qxd4 {[%emt 0:00:05]} Re1# {[%emt 0:00:04] Weighted Error Value: White=0.74/Black=0.47} 0-1

[Event "FIDE WY-U16 Olympiad 2022"]
[Site "Nakhchivan"]
[Date "2022.10.04"]
[Round "3.6"]
[White "Tenuunbold, Battulga"]
[Black "Israilov, Agil"]
[Result "0-1"]
[ECO "E94"]
[WhiteElo "2128"]
[BlackElo "1883"]
[Annotator "TA"]
[PlyCount "92"]
[EventDate "2022.10.02"]
[EventType "team-tourn"]
[EventCountry "AZE"]
[SourceTitle "playchess.com"]
[Source "ChessBase"]
[SourceQuality "1"]
[WhiteTeam "Mongolia"]
[BlackTeam "Azerbaijan"]
[WhiteTeamCountry "MGL"]
[BlackTeamCountry "AZE"]
[TimeControl "40/5400+30:1800+30"]

{[%evp 13,92,33,42,0,0,0,0,-3,0,0,0,0,-4,-3,-3,-3,-4,0,-4,-37,-42,-42,-21,-61,-56,-56,-54,-43,-37,-39,-59,-100,-99,-136,-131,-120,-119,-189,-208,-212,-214,-240,-229,-242,-228,-217,-140,-193,-172,-180,-170,-158,-100,-101,-102,-104,-104,-104,-104,-105,-112,-129,0,-95,0,0,0,0,0,-98,0,-147,51,72,82,0,585,-450,-374,-995,-987]} 1. d4 {[%emt 0:00:02]} Nf6 {[%emt 0:00:39]} 2. c4 {[%emt 0:00:19]} g6 {[%emt 0:00:15]} 3. Nc3 {[%emt 0:00:18]} Bg7 {[%emt 0:00:19]} 4. e4 {[%emt 0:00:56]} d6 {[%emt 0:00:11]} 5. Be2 {[%emt 0:00:26]} O-O {[%emt 0:00:20]} 6. Nf3 {[%emt 0:00:17]} e5 {[%emt 0:00:35]} 7. O-O {[%emt 0:00:08]} Bg4 {[%emt 0:06:00]} 8. Be3 {[%emt 0:01:53] E94: King's Indian: Classical: 6 Be2 e5 7 0-0: Various Black 7th moves.} Bxf3 {[%emt 0:04:55]} 9. Bxf3 {[%emt 0:00:05]} ({Much weaker is} 9. gxf3 Nh5 $15) 9... exd4 $1 {[%emt 0:02:30]} 10. Bxd4 {[%emt 0:00:07] The position is equal.} Nc6 {[%emt 0:00:40]} 11. Be3 {[%emt 0:00:49]} Re8 {[%emt 0:04:13]} 12. Qc2 {[%emt 0:05:11]} Nd7 {[%emt 0:08:15]} 13. Rad1 {[%emt 0:02:12][%cal Oc4c5]} Bxc3 {[%emt 0:01:32]} 14. Qxc3 {[%emt 0:05:22]} Qf6 {[%emt 0:00:10]} 15. Qb3 {[%emt 0:01:53]} Rab8 {[%emt 0:12:23] [#]} 16. Rfe1 $146 {[%emt 0:04:41]} ({Predecessor:} 16. Rd5 Nb6 17. Bxb6 axb6 18. Rfd1 Re7 19. a3 Rbe8 20. Qc2 Nd8 21. Re1 Ne6 22. Bd1 {0-1 (35) Sernecki,F (2250)-Cabarkapa,N (2428) Ustron 2022}) 16... Nc5 {[%emt 0:01:43]} 17. Qc2 {[%emt 0:02:44]} Re6 {[%emt 0:08:27][%cal Be8e6,Be6d6,Bd6d2][%mdl 32]} 18. Qb1 {[%emt 0:18:26]} (18. e5 {keeps more tension.} Nxe5 19. Bd5 Re7 20. b4) 18... Rbe8 {[%emt 0:09:46]} 19. Bxc5 {[%emt 0:03:06]} dxc5 {[%emt 0:01:05]} 20. Bg4 {[%emt 0:00:02]} Rd6 {[%emt 0:00:42]} 21. Bd7 {[%emt 0:00:47]} Rd8 {[%emt 0:00:22][%cal Be8d8,Bd8d2,Bd2a2][%mdl 32]} 22. Bxc6 {[%emt 0:00:05]} Rd2 {[%emt 0:00:11]} 23. Rxd2 {[%emt 0:03:29]} Rxd2 {[%emt 0:00:06]} 24. Rf1 {[%emt 0:00:01]} Qxc6 $17 {[%emt 0:01:52][%mdl 4096] Endgame KQR-KQR. Black has more active pieces.} 25. b4 {[%emt 0:06:21]} (25. e5 $17) 25... cxb4 $19 {[%emt 0:01:33]} 26. Qxb4 {[%emt 0:00:02]} Rxa2 {[%emt 0:04:03]} 27. Rd1 {[%emt 0:03:20]} Qf6 {[%emt 0:01:41] Inhibits Rd8+.} 28. Qe1 {[%emt 0:00:36]} Qe5 {[%emt 0:05:57]} 29. g3 {[%emt 0:01:21]} a5 {[%emt 0:03:00]} 30. Kg2 {[%emt 0:03:01]} (30. Rd5 $17 Ra1 31. Rxe5 Rxe1+ 32. Kg2) 30... c6 {[%emt 0:03:16]} 31. Rd7 {[%emt 0:03:11]} Rb2 {[%emt 0:00:22] aiming for ...a4.} 32. Qe3 {[%emt 0:00:46]} Kg7 {[%emt 0:02:20]} (32... a4 $142 $1 {...Rb3 is the strong threat.} 33. Qf3 Qe8) 33. Qf3 $17 {[%emt 0:01:23] Prevents Rb3.} Qf6 {[%emt 0:00:21]} 34. Qe3 {[%emt 0:00:02]} Rb4 {[%emt 0:01:59]} 35. h4 {[%emt 0:05:12][%cal Oh4h5]} h5 {[%emt 0:01:54]} 36. Kh2 {[%emt 0:09:21]} Rb2 {[%emt 0:09:57]} 37. Kg2 {[%emt 0:00:05] Threatens to win with e5.} Rb4 {[%emt 0:00:07]} 38. Kh2 $1 {[%emt 0:00:04]} Qe5 {[%emt 0:03:55]} ({Black should try} 38... Rxc4 $17 {White must now prevent ...b5.} 39. e5 Qe6 40. Rxb7 Rb4) 39. Qf3 $11 {[%emt 0:01:16]} Qe6 {[%emt 0:00:14]} (39... Qe8 $11 40. Qc3+ Kh7) 40. Qc3+ $17 {[%emt 0:00:04]} Qf6 {[%emt 0:00:06]} 41. Qe3 {[%emt 0:30:03]} Rb2 {[%emt 0:05:14]} (41... Rxc4 $142 42. e5 Qe6 43. Rxb7 Rb4) 42. Kg2 {[%emt 0:00:00]} a4 $2 {[%emt 0:01:11]} (42... Rb1 $17 {And now ...a4 would win.} 43. Kh2 c5) 43. e5 $14 {[%emt 0:00:00]} Qe6 {[%emt 0:01:40][%csl LRc4,LRd7] [#]} 44. Rd6 {[%emt 0:00:00]} Qxc4 {[%emt 0:00:34][%mdl 8192] [#]} (44... Rb3 $1 $11 {and Black has nothing to worry.} 45. Qe1 Qf5) 45. e6 $4 {[%emt 0:00:00][%mdl 8192]} (45. Qf3 $1 $18 {[%cal Rf3f6] was the only winning move. Hoping for Qf6+.} Rxf2+ 46. Qxf2 Qe4+ 47. Kh2 Qxe5 48. Rd7) 45... Re2 {[%emt 0:00:13]} 46. Qa3 {[%emt 0:00:00]} (46. Rd4 Rxe3 47. Rxc4 Rxe6 48. Rxa4) 46... Qe4+ {[%emt 0:00:07] What a bad dream for White.  Weighted Error Value: White=0.34/Black=0.34} 0-1

[Event "FIDE WY-U16 Olympiad 2022"]
[Site "Nakhchivan"]
[Date "2022.10.04"]
[Round "3.7"]
[White "Mrittika, Mallick"]
[Black "Nurmanova, Alua"]
[Result "0-1"]
[ECO "B52"]
[WhiteElo "1879"]
[BlackElo "2188"]
[Annotator "TA"]
[PlyCount "62"]
[EventDate "2022.10.02"]
[EventType "team-tourn"]
[EventCountry "AZE"]
[SourceTitle "playchess.com"]
[Source "ChessBase"]
[SourceQuality "1"]
[BlackTeam "Kazakhstan"]
[BlackTeamCountry "KAZ"]
[TimeControl "40/5400+30:1800+30"]

{[%evp 14,62,16,8,26,22,22,23,33,20,33,31,36,34,29,15,22,17,26,15,25,29,21,37,36,12,30,31,27,30,59,57,47,0,58,52,51,20,2,14,11,0,22,0,0,0,0,0,8,-4,-9]} 1. e4 {[%emt 0:00:07]} c5 {[%emt 0:00:07]} 2. Nf3 {[%emt 0:00:13]} d6 {[%emt 0:00:04]} 3. Bb5+ {[%emt 0:00:15]} Bd7 {[%emt 0:00:08]} 4. Bxd7+ {[%emt 0:00:18]} Nxd7 {[%emt 0:00:01]} 5. O-O {[%emt 0:00:22]} Ngf6 {[%emt 0:00:04]} 6. Qe2 {[%emt 0:00:19]} e6 {[%emt 0:00:20]} 7. d4 {[%emt 0:00:21] 7.c3 is a critical line.} cxd4 {[%emt 0:00:23]} 8. Nxd4 {[%emt 0:00:09]} a6 {[%emt 0:02:51] B52: Sicilian: Moscow Variation with 3...Bd7.} 9. c4 {[%emt 0:00:52]} Be7 {[%emt 0:00:16]} 10. b3 {[%emt 0:01:22]} Rc8 {[%emt 0:00:20] White has an edge.} 11. Bb2 {[%emt 0:00:20]} Qb6 {[%emt 0:00:15]} 12. Rd1 {[%emt 0:01:17]} O-O {[%emt 0:00:16]} 13. Nc3 {[%emt 0:01:11]} Rfe8 {[%emt 0:00:06]} 14. Kh1 {[%emt 0:03:42]} Bf8 {[%emt 0:00:35]} 15. Rac1 {[%emt 0:08:33][%cal Ba1c1,Bc1c2,Bc2d2][%mdl 32]} g6 {[%emt 0:02:18] [#]} 16. Rc2 $146 {[%emt 0:23:12]} ({Predecessor:} 16. f4 Qa5 17. Qf3 Rc7 18. g4 Bg7 19. Na4 b5 20. Bc3 b4 21. Be1 Nc5 22. a3 Nxa4 23. axb4 {1-0 (42) Bachmann,A (2505)-Bruzon Batista,L (2607) Linares 2008}) 16... Bg7 {[%emt 0:14:56]} 17. Nf3 {[%emt 0:08:36]} Qc7 {[%emt 0:19:05]} 18. Rcd2 {[%emt 0:06:55]} Bf8 {[%emt 0:00:51]} 19. e5 {[%emt 0:13:26]} Nxe5 {[%emt 0:28:16]} 20. Nxe5 {[%emt 0:01:32]} dxe5 {[%emt 0:00:02]} 21. Na4 {[%emt 0:02:20]} Be7 {[%emt 0:09:22]} 22. Bxe5 {[%emt 0:01:05]} Qa5 {[%emt 0:00:22]} 23. h3 {[%emt 0:19:23]} (23. Bc3 $14 {feels stronger.} Qf5 24. f3) 23... b5 {[%emt 0:06:17]} ({Black should try} 23... Red8 $11) 24. Bc3 $14 {[%emt 0:02:19]} Bb4 {[%emt 0:01:15]} 25. Bxb4 {[%emt 0:00:53]} (25. Qe5 $5 {[%cal Re5f6]} bxa4 26. Qxa5 Bxa5 27. Bxa5 $14) 25... Qxb4 {[%emt 0:00:02] The position is equal.} 26. Nb6 $36 {[%emt 0:01:20][%mdl 2048] White fights for an advantage.} Rb8 {[%emt 0:02:31]} 27. Qe5 {[%emt 0:04:45]} bxc4 {[%emt 0:03:54]} 28. Qxf6 {[%emt 0:03:10]} (28. Nxc4 $5 {[%cal Re5f6]} Nd5 29. Ne3 $11) 28... Qxb6 {[%emt 0:00:19]} 29. Rd7 {[%emt 0:00:47]} Rf8 {[%emt 0:00:09]} 30. bxc4 {[%emt 0:00:09]} Qc6 {[%emt 0:03:22]} 31. R7d4 {[%emt 0:02:42]} Qc5 {[%emt 0:01:10][%mdl 32768] Weighted Error Value: White=0.09 (flawless) /Black=0.08 (flawless) . Loss on time!?} 0-1

[Event "FIDE WY-U16 Olympiad 2022"]
[Site "Nakhchivan"]
[Date "2022.10.04"]
[Round "3.7"]
[White "Abdulkarimli, Eljan"]
[Black "Amilal Munkhdalai"]
[Result "0-1"]
[ECO "B48"]
[WhiteElo "1742"]
[BlackElo "2200"]
[Annotator "TA"]
[PlyCount "48"]
[EventDate "2022.10.02"]
[EventType "team-tourn"]
[EventCountry "AZE"]
[SourceTitle "playchess.com"]
[Source "ChessBase"]
[SourceQuality "1"]
[WhiteTeam "Azerbaijan"]
[BlackTeam "Mongolia"]
[WhiteTeamCountry "AZE"]
[BlackTeamCountry "MGL"]
[TimeControl "40/5400+30:1800+30"]

{[%evp 11,48,22,31,22,25,10,45,28,56,68,56,-33,-16,-39,-22,-30,-12,-37,-47,-77,-74,-58,-25,-102,-107,-180,-179,-164,-184,-254,-224,-1214,-1185,-29982,-29982,-29991,-29992,-29992,-29993]} 1. e4 {[%emt 0:00:08]} c5 {[%emt 0:00:03]} 2. Nf3 {[%emt 0:00:13]} Nc6 {[%emt 0:00:04]} 3. d4 {[%emt 0:00:08]} cxd4 {[%emt 0:00:02]} 4. Nxd4 {[%emt 0:00:08]} Qc7 {[%emt 0:00:04]} 5. Nc3 {[%emt 0:00:09]} e6 {[%emt 0:00:04]} 6. Be3 {[%emt 0:00:42]} Nf6 {[%emt 0:00:15]} 7. Qf3 {[%emt 0:01:17] B48: Sicilian: Taimanov: 5 Nc3 Qc7 6 Be3 a6 without Be2.} a6 {[%emt 0:02:39][%cal Of8a3]} 8. O-O-O {[%emt 0:00:15]} Be7 {[%emt 0:04:20]} 9. Kb1 {[%emt 0:01:28] White is slightly better.} O-O {[%emt 0:04:01]} 10. g4 {[%emt 0:01:51]} d6 {[%emt 0:03:03] [#]} 11. Qh3 $146 {[%emt 0:06:48]} (11. g5 $14 Nd7 12. Qh5) ({Predecessor:} 11. Nxc6 bxc6 12. g5 Nd7 13. h4 Rb8 14. Qg3 e5 15. g6 fxg6 16. h5 g5 17. Bc4+ {1-0 (30) Azarov,S (2586)-Shchekachev,A (2524) Bastia 2019}) 11... Nxd4 $15 {[%emt 0:05:50]} 12. Rxd4 {[%emt 0:07:12]} b5 {[%emt 0:02:27][%cal Bb7b5,Bb5b4][%mdl 32]} 13. f3 {[%emt 0:21:11]} Rb8 {[%emt 0:22:23]} 14. Qg3 {[%emt 0:11:48]} b4 {[%emt 0:01:55]} 15. Ne2 {[%emt 0:03:11]} e5 {[%emt 0:00:28]} 16. Rd2 {[%emt 0:01:53]} Be6 {[%emt 0:07:42]} 17. h4 {[%emt 0:04:25] [#]} (17. g5 $11 {keeps the balance.} Nh5 18. Qh4) 17... d5 $1 $17 {[%emt 0:03:46] Black is more active.} 18. Nd4 {[%emt 0:05:27]} (18. g5 $17 {was necessary.} Nh5 19. Qh2 dxe4 20. fxe4) 18... dxe4 $19 {[%emt 0:00:47][%cal Oe6a2] aiming for ...Bxa2+!} 19. Nxe6 {[%emt 0:12:25]} fxe6 {[%emt 0:00:05]} 20. Bg5 {[%emt 0:06:47]} ({Avoid the trap} 20. Bxa6 $2 exf3 21. Qe1 (21. Qxf3 $2 Nd5 $19) 21... Ra8 $19) (20. g5 $142 Nd5 21. Rxd5 (21. fxe4 $2 Nc3+ 22. Kc1 b3 $19) 21... exd5 22. fxe4) 20... Nd5 {[%emt 0:03:35]} 21. fxe4 $2 {[%emt 0:02:17] [#]} (21. Rxd5 exd5 22. fxe4) 21... Nc3+ $1 {[%emt 0:00:11][%mdl 512]} 22. Ka1 {[%emt 0:00:53] [#]} (22. Kc1 b3) 22... Rxf1+ $1 {[%emt 0:02:42][%mdl 512] Black mates.} 23. Rxf1 {[%emt 0:01:29]} (23. Rd1 Rxd1+) 23... Qc4 {[%emt 0:00:07][%csl Gc3][%cal Rc4a2]} 24. bxc3 {[%emt 0:02:25]} Qxf1+ {[%emt 0:00:05] Weighted Error Value: White=0.86/Black=0.07 (flawless)} 0-1

[Event "FIDE WY-U16 Olympiad 2022"]
[Site "Nakhchivan"]
[Date "2022.10.04"]
[Round "3.8"]
[White "Akhilbay, Imangali"]
[Black "Rohit S"]
[Result "1-0"]
[ECO "B91"]
[WhiteElo "2098"]
[BlackElo "2181"]
[Annotator "TA"]
[PlyCount "67"]
[EventDate "2022.10.02"]
[EventType "team-tourn"]
[EventCountry "AZE"]
[SourceTitle "playchess.com"]
[Source "ChessBase"]
[SourceQuality "1"]
[WhiteTeam "Kazakhstan"]
[BlackTeam "India"]
[WhiteTeamCountry "KAZ"]
[BlackTeamCountry "IND"]
[TimeControl "40/5400+30:1800+30"]

{[%evp 17,67,11,14,-6,27,23,21,28,32,41,44,7,15,35,29,0,70,52,52,74,67,0,52,29,25,18,21,25,21,9,177,182,148,155,395,398,554,550,679,657,902,883,943,928,1309,1311,1294,1284,1270,1276,1227,1221]} 1. e4 {[%emt 0:00:10]} c5 {[%emt 0:00:05]} 2. Nf3 {[%emt 0:00:10]} d6 {[%emt 0:00:05]} 3. d4 {[%emt 0:00:25]} cxd4 {[%emt 0:00:05]} 4. Nxd4 {[%emt 0:00:03]} Nf6 {[%emt 0:00:06]} 5. Nc3 {[%emt 0:00:09]} a6 {[%emt 0:00:02]} 6. g3 {[%emt 0:00:07]} e5 {[%emt 0:00:04]} 7. Nb3 {[%emt 0:00:04]} Be7 {[%emt 0:00:32]} 8. Bg2 {[%emt 0:00:07]} O-O {[%emt 0:07:03]} 9. O-O {[%emt 0:01:07]} b5 {[%emt 0:01:52]} 10. Be3 {[%emt 0:02:24] B91: Sicilian Najdorf: 6 g3.} Be6 {[%emt 0:01:56]} 11. a4 {[%emt 0:02:48]} b4 {[%emt 0:00:48]} 12. Nd5 {[%emt 0:00:06] The position is equal.} Nxd5 {[%emt 0:01:26]} 13. exd5 {[%emt 0:00:08]} Bf5 {[%emt 0:00:36]} 14. a5 {[%emt 0:14:53]} Nd7 {[%emt 0:03:52]} 15. Qd2 {[%emt 0:10:05] [#]} (15. Qe2) 15... Rb8 $146 {[%emt 0:06:28]} ({Predecessor:} 15... Qc7 16. Rfc1 Rab8 17. Ra4 Qb7 18. c3 bxc3 19. Rxc3 Nf6 20. Bb6 e4 21. Rc6 Nxd5 22. Qxd5 {1-0 (42) Chigaev,M (2631)-Salemgareev,T (2490) Obninsk 2022}) 16. f4 {[%emt 0:09:38][%cal Bf2f4,Bf4f5][%mdl 32] Hoping for fxe5.} Bg6 {[%emt 0:18:33]} ({Better is} 16... Qc8 $11) 17. f5 {[%emt 0:10:28]} Bh5 {[%emt 0:02:07]} 18. Ra4 $36 {[%emt 0:10:56][%mdl 2048] Keeping Black busy.} Qc7 {[%emt 0:05:03]} 19. Rc1 {[%emt 0:05:21]} (19. h3 $14) 19... Qb7 {[%emt 0:07:08]} (19... Bg4 $11) 20. c3 {[%emt 0:02:20]} (20. h3 $5 {[%cal Rg3g4]}) 20... bxc3 {[%emt 0:00:48]} 21. Rxc3 {[%emt 0:00:05] g4 is the strong threat.} Rfc8 {[%emt 0:04:01] [#] aiming for ...Rxc3.} 22. Rb4 $1 {[%emt 0:08:32]} Qxb4 {[%emt 0:02:12]} 23. Rxc8+ {[%emt 0:00:06]} Nf8 $2 {[%emt 0:00:51] [#]} (23... Bf8 $11 24. Qxb4 Rxb4) 24. Qxb4 $1 $18 {[%emt 0:02:55]} Rxb4 {[%emt 0:00:04] [#]} 25. Nd2 {[%emt 0:00:06] White is more active.} Bg4 $2 {[%emt 0:06:58] Black cannot hold the game after this.} (25... Rxb2 $16 {keeps fighting.} 26. Re8 Bf6) 26. Re8 {[%emt 0:01:15]} Rb7 {[%emt 0:04:09]} 27. Bf1 {[%emt 0:00:39] White is clearly winning.} Bxf5 {[%emt 0:01:20]} 28. Bxa6 {[%emt 0:01:17]} Rc7 {[%emt 0:00:05]} 29. Nc4 {[%emt 0:01:03]} Bf6 {[%emt 0:11:18]} 30. Bb6 {[%emt 0:00:09]} Re7 {[%emt 0:02:07]} 31. Rxe7 {[%emt 0:00:26]} Bxe7 {[%emt 0:00:04]} 32. Bb7 {[%emt 0:00:27]} Bd3 {[%emt 0:00:54] [#]} 33. a6 $1 {[%emt 0:00:15][%cal Ba5a6,Ba6a7][%mdl 32]} Bxc4 {[%emt 0:00:23]} 34. a7 {[%emt 0:00:04] Weighted Error Value: White=0.12 (very precise) /Black=0.59} 1-0